fUST/lending_fUST_20250102
["ID","MTS","AMOUNT","RATE_DAILY","PERIOD"]
[347417908,1735779040423,-441.31807831,0.000189,2]
[347417909,1735779040433,-165.1157644,0.000189,2]
[347417911,1735779040442,-511.91928225,0.00018973,2]
[347417913,1735779040451,-500.0,0.00018973,2]
[347417915,1735779040461,-21.17298943,0.00018973,2]
[347417984,1735779043590,-478.82701057,0.00018973,2]
[347417985,1735779043601,-23.60529946,0.00018998,2]
[347418029,1735779046477,-276.39470054,0.00018998,2]
[347418032,1735779046489,-164.06941249,0.00018999,2]
[347418034,1735779046500,-500.0,0.00018999,2]
[347418036,1735779046511,-400.08455274,0.00018999,2]
[347418038,1735779046523,-500.0,0.00018999,2]
[347418040,1735779046534,-201.91431726,0.00018999,2]
[347418043,1735779046545,-500.0,0.00018999,2]
[347418045,1735779046556,-320.77495155,0.00018999,2]
[347418047,1735779046567,-500.0,0.00018999,2]
[347418049,1735779046578,-476.62471244,0.00018999,2]
[347418052,1735779046590,-63112.07521007,0.00019,2]
[347418057,1735779046619,-5895.05125535,0.00019,2]
[347418254,1735779390724,160.0,0.00023165,120]
[347418256,1735779614431,882.35905322,0.00014222,14]
[347418259,1735779921106,-224.98063,0.00013973,2]
[347418260,1735779971937,213.731598,0.00013973,2]
[347418261,1735780059491,153.58,0.00025,120]
[347418305,1735780234856,-477.41590478,0.00018742,2]
[347418306,1735780234874,-1974.58182727,0.00018777,2]
[347418366,1735780238951,-669.77886064,0.00018777,2]
[347418458,1735780243765,-300.0,0.00018589,14]
[347418459,1735780243778,-5227.90244864,0.00018777,2]
[347418460,1735780243789,-300.0,0.00018899,2]
[347418461,1735780243798,-500.0,0.00018899,2]
[347418462,1735780243809,-200.0,0.000189,3]
[347418463,1735780243818,-200.0,0.000189,4]
[347418464,1735780243827,-200.0,0.000189,5]
[347418465,1735780243837,-200.0,0.000189,6]
[347418466,1735780243846,-200.0,0.000189,3]
[347418467,1735780243856,-200.0,0.000189,6]
[347418468,1735780244099,-200.0,0.000189,5]
[347418469,1735780244114,-200.0,0.000189,4]
[347418470,1735780244124,-204.0,0.000189,4]
[347418471,1735780244133,-204.0,0.000189,5]
[347418472,1735780244143,-153.0,0.000189,2]
[347418473,1735780244152,-214.4412851,0.000189,2]
[347418474,1735780244162,-153.0,0.000189,2]
[347418475,1735780244171,-214.4412851,0.000189,2]
[347418476,1735780244180,-214.4412851,0.000189,2]
[347418477,1735780244190,-153.0,0.000189,2]
[347418478,1735780244199,-153.5878957,0.000189,2]
[347418479,1735780244208,-724.04508033,0.000189,2]
[347418480,1735780244220,-305.07379912,0.000189,2]
[347418481,1735780244232,-39895.64527527,0.00019,2]
[347418482,1735780244242,-810.0,0.00019,3]
[347418483,1735780244251,-3000.0,0.00019,2]
[347418484,1735780244264,-197.005,0.00019063,2]
[347418485,1735780244273,-1916.85548357,0.00019078,2]
[347418486,1735780244282,-154.02,0.00019078,2]
[347418487,1735780244292,-394.0,0.00019111,2]
[347418488,1735780244301,-724.04508033,0.00019163,2]
[347418489,1735780244311,-500.0,0.00019173,2]
[347418490,1735780244320,-500.0,0.00019173,2]
[347418491,1735780244331,-500.3380133,0.00019173,2]
[347418492,1735780244342,-500.0,0.00019173,2]
[347418493,1735780244352,-500.0,0.00019173,2]
[347418494,1735780244363,-265.81769389,0.00019177,2]
[347418495,1735780244371,-502.90515403,0.00019178,2]
[347418496,1735780244381,-3658.1810104,0.00019178,2]
[347418497,1735780244390,-500.0,0.00019178,2]
[347418498,1735780244399,-500.0,0.00019178,2]
[347418499,1735780244408,-500.0,0.00019178,2]
[347418500,1735780244418,-564.54,0.00019178,2]
[347418501,1735780244427,-622.90301308,0.00019178,2]
[347418502,1735780244436,-500.0,0.00019178,2]
[347418503,1735780244447,-500.0,0.00019178,2]
[347418504,1735780244457,-500.0,0.00019178,2]
[347418505,1735780244466,-500.0,0.00019178,2]
[347418506,1735780244475,-500.0,0.00019178,2]
[347418507,1735780244484,-500.0,0.00019178,2]
[347418508,1735780244494,-500.0,0.00019178,2]
[347418509,1735780244503,-500.0,0.00019178,2]
[347418510,1735780244514,-500.0,0.00019178,2]
[347418511,1735780244523,-500.0,0.00019178,2]
[347418512,1735780244532,-500.0,0.00019178,2]
[347418513,1735780244542,-500.0,0.00019178,2]
[347418514,1735780244551,-500.0,0.00019178,2]
[347418515,1735780244560,-500.0,0.00019178,2]
[347418516,1735780244569,-500.0,0.00019178,2]
[347418517,1735780244578,-500.0,0.00019178,2]
[347418518,1735780244587,-500.0,0.00019178,2]
[347418519,1735780244596,-500.0,0.00019178,2]
[347418520,1735780244606,-570.52,0.00019178,2]
[347418521,1735780244615,-613.30764603,0.00019178,2]
[347418522,1735780244624,-734.17,0.00019178,2]
[347418523,1735780244633,-500.0,0.00019178,2]
[347418524,1735780244642,-500.0,0.00019178,2]
[347418525,1735780244652,-640.33,0.00019178,2]
[347418526,1735780244663,-206.05981643,0.00019178,2]
[347418527,1735780244673,-500.0,0.00019178,2]
[347418528,1735780244683,-2349.26,0.00019178,2]
[347418529,1735780244694,-722.51,0.00019178,2]
[347418530,1735780244704,-644.18,0.00019178,2]
[347418531,1735780244714,-506.34,0.00019178,2]
[347418532,1735780244724,-500.0,0.00019178,2]
[347418533,1735780244733,-500.0,0.00019178,2]
[347418534,1735780244743,-500.0,0.00019178,2]
[347418535,1735780244753,-500.0,0.00019178,2]
[347418536,1735780244763,-500.0,0.00019178,2]
[347418537,1735780244772,-500.0,0.00019178,2]
[347418538,1735780244781,-2569.39,0.00019178,2]
[347418539,1735780244790,-500.0,0.00019178,2]
[347418540,1735780244799,-500.0,0.00019178,2]
[347418541,1735780244808,-500.0,0.00019178,2]
[347418542,1735780244817,-566.36,0.00019178,2]
[347418543,1735780244826,-500.0,0.00019178,2]
[347418544,1735780244836,-500.0,0.00019178,2]
[347418545,1735780244845,-500.0,0.00019178,2]
[347418546,1735780244854,-500.0,0.00019178,2]
[347418547,1735780244864,-500.0,0.00019178,2]
[347418548,1735780244873,-500.0,0.00019178,2]
[347418549,1735780244882,-834.95,0.00019178,2]
[347418550,1735780244891,-601.73,0.00019178,2]
[347418551,1735780244900,-520.33,0.00019178,2]
[347418552,1735780244909,-535.69,0.00019178,2]
[347418553,1735780244920,-500.0,0.00019178,2]
[347418554,1735780244930,-539.85,0.00019178,2]
[347418555,1735780244940,-500.0,0.00019178,2]
[347418556,1735780244950,-500.0,0.00019178,2]
[347418557,1735780244959,-767.85,0.00019178,2]
[347418558,1735780244968,-707.14,0.00019178,2]
[347418559,1735780244984,-500.0,0.00019178,2]
[347418560,1735780244994,-500.0,0.00019178,2]
[347418561,1735780245003,-500.0,0.00019178,2]
[347418562,1735780245016,-1605.29,0.00019178,2]
[347418563,1735780245026,-500.0,0.00019178,2]
[347418564,1735780245037,-643.16,0.00019178,2]
[347418565,1735780245046,-500.0,0.00019178,2]
[347418566,1735780245056,-500.0,0.00019178,2]
[347418567,1735780245066,-500.0,0.00019178,2]
[347418568,1735780245076,-500.0,0.00019178,2]
[347418569,1735780245085,-962.53,0.00019178,2]
[347418570,1735780245095,-4635.84,0.00019178,2]
[347418571,1735780245104,-500.0,0.00019178,2]
[347418572,1735780245113,-559.63,0.00019178,2]
[347418573,1735780245123,-500.0,0.00019178,2]
[347418574,1735780245132,-705.37,0.00019178,2]
[347418575,1735780245142,-1168.11,0.00019178,2]
[347418576,1735780245152,-500.0,0.00019178,2]
[347418577,1735780245161,-3140.79,0.00019178,2]
[347418578,1735780245170,-756.81,0.00019178,2]
[347418579,1735780245179,-917.17,0.00019178,2]
[347418580,1735780245189,-3789.54,0.00019178,2]
[347418581,1735780245198,-729.68,0.00019178,2]
[347418582,1735780245207,-21689.88,0.00019178,2]
[347418583,1735780245216,-1879.51,0.00019178,2]
[347418584,1735780245226,-500.0,0.00019178,2]
[347418585,1735780245235,-500.0,0.00019178,2]
[347418586,1735780245245,-528.01,0.00019178,2]
[347418587,1735780245254,-500.0,0.00019178,2]
[347418588,1735780245264,-500.0,0.00019178,2]
[347418589,1735780245273,-850.65,0.00019178,2]
[347418590,1735780245282,-500.0,0.00019178,2]
[347418591,1735780245292,-500.0,0.00019178,2]
[347418592,1735780245301,-500.0,0.00019178,2]
[347418593,1735780245310,-500.0,0.00019178,2]
[347418594,1735780245320,-1322.01,0.00019178,2]
[347418595,1735780245330,-763.58,0.00019178,2]
[347418596,1735780245341,-1927.52,0.00019178,2]
[347418597,1735780245351,-1134.33,0.00019178,2]
[347418598,1735780245360,-500.0,0.00019178,2]
[347418599,1735780245369,-500.0,0.00019178,2]
[347418600,1735780245378,-2124.41,0.00019178,2]
[347418601,1735780245387,-500.0,0.00019178,2]
[347418602,1735780245397,-1073.51,0.00019178,2]
[347418603,1735780245406,-1135.05,0.00019178,2]
[347418604,1735780245415,-500.0,0.00019178,2]
[347418605,1735780245425,-1144.62,0.00019178,2]
[347418606,1735780245434,-513.07,0.00019178,2]
[347418607,1735780245443,-678.15,0.00019178,2]
[347418608,1735780245453,-1023.82,0.00019178,2]
[347418609,1735780245462,-1443.83,0.00019178,2]
[347418610,1735780245471,-500.0,0.00019178,2]
[347418611,1735780245481,-569.79,0.00019178,2]
[347418612,1735780245490,-500.0,0.00019178,2]
[347418613,1735780245500,-500.0,0.00019178,2]
[347418614,1735780245512,-500.0,0.00019178,2]
[347418615,1735780245522,-500.0,0.00019178,2]
[347418616,1735780245531,-526.71,0.00019178,2]
[347418617,1735780245540,-591.11,0.00019178,2]
[347418618,1735780245549,-500.0,0.00019178,2]
[347418619,1735780245559,-168.039539,0.00019178,2]
[347418620,1735780245569,-162.880324,0.00019178,2]
[347418621,1735780245578,-913.99,0.000192,2]
[347418622,1735780245588,-1916.85548353,0.00019215,2]
[347418623,1735780245598,-532.608,0.0001926,2]
[347418624,1735780245607,-1916.85548353,0.00019352,2]
[347418625,1735780245617,-724.04508033,0.00019426,2]
[347418626,1735780245627,-160.0,0.00019428,2]
[347418627,1735780245636,-160.0,0.00019428,2]
[347418628,1735780245646,-160.0,0.00019428,2]
[347418629,1735780245655,-160.0,0.00019428,2]
[347418630,1735780245664,-160.0,0.00019428,2]
[347418631,1735780245674,-202.0,0.00019428,2]
[347418632,1735780245683,-205.78191443,0.00019451,2]
[347418633,1735780245693,-500.0,0.00019451,2]
[347418634,1735780245702,-490.45407993,0.00019451,2]
[347418635,1735780245711,-325.405084,0.00019452,2]
[347418636,1735780245721,-325.405084,0.00019452,2]
[347418637,1735780245730,-151.0,0.00019452,2]
[347418638,1735780245740,-151.0,0.00019452,2]
[347418639,1735780245749,-151.0,0.00019452,2]
[347418640,1735780245760,-151.0,0.00019452,2]
[347418641,1735780245770,-539.244787,0.00019452,2]
[347418642,1735780245779,-539.244787,0.00019452,2]
[347418643,1735780245788,-151.0,0.00019452,2]
[347418644,1735780245798,-151.0,0.00019452,2]
[347418645,1735780245808,-3158.388509,0.00019452,2]
[347418646,1735780245817,-217.550367,0.00019452,2]
[347418647,1735780245827,-217.550367,0.00019452,2]
[347418648,1735780245837,-217.550367,0.00019452,2]
[347418649,1735780245846,-217.550367,0.00019452,2]
[347418650,1735780245856,-242.308778,0.00019452,2]
[347418651,1735780245865,-242.308778,0.00019452,2]
[347418652,1735780245875,-151.0,0.00019452,2]
[347418653,1735780245884,-151.0,0.00019452,2]
[347418654,1735780245893,-254.529318,0.00019452,2]
[347418655,1735780245903,-254.529318,0.00019452,2]
[347418656,1735780245913,-500.0,0.00019452,3]
[347418657,1735780245923,-254.529318,0.00019452,2]
[347418658,1735780245932,-254.529318,0.00019452,2]
[347418659,1735780245942,-248.512638,0.00019452,2]
[347418660,1735780245951,-248.512638,0.00019452,2]
[347418661,1735780245961,-248.512638,0.00019452,2]
[347418662,1735780245971,-248.512638,0.00019452,2]
[347418663,1735780245984,-151.0,0.00019452,2]
[347418664,1735780245994,-151.0,0.00019452,2]
[347418665,1735780246009,-500.0,0.00019452,3]
[347418666,1735780246019,-500.0,0.00019452,3]
[347418667,1735780246028,-315.422068,0.00019452,2]
[347418668,1735780246038,-315.422068,0.00019452,2]
[347418669,1735780246047,-315.422068,0.00019452,2]
[347418670,1735780246058,-315.422068,0.00019452,2]
[347418671,1735780246069,-151.0,0.00019452,2]
[347418672,1735780246079,-151.0,0.00019452,2]
[347418673,1735780246088,-151.0,0.00019452,2]
[347418674,1735780246098,-151.0,0.00019452,2]
[347418675,1735780246107,-285.538794,0.00019452,2]
[347418676,1735780246116,-151.0,0.00019452,2]
[347418677,1735780246126,-285.538794,0.00019452,2]
[347418678,1735780246135,-151.0,0.00019452,2]
[347418679,1735780246145,-1497.811251,0.00019452,2]
[347418680,1735780246154,-1497.811251,0.00019452,2]
[347418681,1735780246163,-285.538794,0.00019452,2]
[347418682,1735780246173,-1497.811251,0.00019452,2]
[347418683,1735780246183,-285.538794,0.00019452,2]
[347418684,1735780246192,-1497.811251,0.00019452,2]
[347418685,1735780246201,-151.0,0.00019452,2]
[347418686,1735780246211,-161.173248,0.00019452,2]
[347418687,1735780246222,-564.54,0.00019452,3]
[347418688,1735780246232,-151.0,0.00019452,2]
[347418689,1735780246243,-151.0,0.00019452,2]
[347418690,1735780246252,-151.0,0.00019452,2]
[347418691,1735780246262,-153.840585,0.00019452,2]
[347418692,1735780246271,-2694.844095,0.00019452,2]
[347418693,1735780246281,-2694.844095,0.00019452,2]
[347418694,1735780246290,-2694.844095,0.00019452,2]
[347418695,1735780246300,-2694.844095,0.00019452,2]
[347418696,1735780246309,-151.0,0.00019452,2]
[347418697,1735780246319,-151.0,0.00019452,2]
[347418698,1735780246328,-500.0,0.00019452,3]
[347418699,1735780246338,-282.656744,0.00019452,2]
[347418700,1735780246348,-282.656744,0.00019452,2]
[347418702,1735780246357,-282.656744,0.00019452,2]
[347418703,1735780246366,-500.0,0.00019452,3]
[347418704,1735780246376,-282.656744,0.00019452,2]
[347418705,1735780246385,-500.0,0.00019452,3]
[347418706,1735780246394,-606.24833188,0.00019452,3]
[347418707,1735780246404,-151.0,0.00019452,2]
[347418708,1735780246414,-151.0,0.00019452,2]
[347418709,1735780246424,-151.0,0.00019452,2]
[347418710,1735780246434,-151.0,0.00019452,2]
[347418711,1735780246444,-151.0,0.00019452,2]
[347418712,1735780246455,-1363.681793,0.00019452,2]
[347418713,1735780246465,-193.841155,0.00019452,2]
[347418715,1735780246475,-1363.681793,0.00019452,2]
[347418717,1735780246484,-1363.681793,0.00019452,2]
[347418719,1735780246494,-1363.681793,0.00019452,2]
[347418721,1735780246503,-500.0,0.00019452,3]
[347418723,1735780246515,-500.0,0.00019452,3]
[347418725,1735780246524,-500.0,0.00019452,3]
[347418726,1735780246534,-500.0,0.00019452,3]
[347418727,1735780246544,-500.0,0.00019452,3]
[347418728,1735780246553,-151.0,0.00019452,2]
[347418729,1735780246563,-151.0,0.00019452,2]
[347418730,1735780246572,-151.342416,0.00019452,2]
[347418731,1735780246582,-500.0,0.00019452,3]
[347418732,1735780246592,-570.52,0.00019452,3]
[347418733,1735780246602,-734.17,0.00019452,3]
[347418735,1735780246611,-547.276778,0.00019452,2]
[347418737,1735780246621,-229.739009,0.00019452,2]
[347418739,1735780246630,-229.739009,0.00019452,2]
[347418741,1735780246639,-547.276778,0.00019452,2]
[347418743,1735780246649,-547.276778,0.00019452,2]
[347418745,1735780246658,-547.276778,0.00019452,2]
[347418747,1735780246668,-640.33,0.00019452,3]
[347418749,1735780246677,-500.0,0.00019452,3]
[347418751,1735780246687,-2349.26,0.00019452,3]
[347418753,1735780246696,-722.51,0.00019452,3]
[347418755,1735780246706,-644.18,0.00019452,3]
[347418757,1735780246715,-506.34,0.00019452,3]
[347418759,1735780246724,-151.0,0.00019452,2]
[347418761,1735780246733,-151.0,0.00019452,2]
[347418763,1735780246743,-151.0,0.00019452,2]
[347418765,1735780246752,-151.0,0.00019452,2]
[347418767,1735780246762,-500.0,0.00019452,3]
[347418769,1735780246772,-151.155888,0.00019452,2]
[347418771,1735780246782,-500.0,0.00019452,3]
[347418773,1735780246791,-1350.944877,0.00019452,2]
[347418775,1735780246801,-1350.944877,0.00019452,2]
[347418778,1735780246812,-1350.944877,0.00019452,2]
[347418780,1735780246822,-1350.944877,0.00019452,2]
[347418782,1735780246831,-1350.944877,0.00019452,2]
[347418784,1735780246840,-1350.944877,0.00019452,2]
[347418786,1735780246849,-186.024747,0.00019452,2]
[347418787,1735780246858,-186.024747,0.00019452,2]
[347418790,1735780246868,-186.024747,0.00019452,2]
[347418791,1735780246877,-186.024747,0.00019452,2]
[347418793,1735780246887,-186.024747,0.00019452,2]
[347418795,1735780246895,-186.024747,0.00019452,2]
[347418797,1735780246904,-500.0,0.00019452,3]
[347418799,1735780246914,-500.0,0.00019452,3]
[347418801,1735780246923,-500.0,0.00019452,3]
[347418803,1735780246932,-500.0,0.00019452,3]
[347418805,1735780246941,-2569.39,0.00019452,3]
[347418807,1735780246951,-500.0,0.00019452,3]
[347418810,1735780246960,-500.0,0.00019452,3]
[347418812,1735780246970,-500.0,0.00019452,3]
[347418813,1735780246983,-479.828168,0.00019452,2]
[347418815,1735780246993,-479.828168,0.00019452,2]
[347418818,1735780247002,-479.828168,0.00019452,2]
[347418819,1735780247012,-479.828168,0.00019452,2]
[347418821,1735780247022,-479.828168,0.00019452,2]
[347418824,1735780247031,-479.828168,0.00019452,2]
[347418826,1735780247040,-566.36,0.00019452,3]
[347418827,1735780247049,-470.896191,0.00019452,2]
[347418829,1735780247060,-470.896191,0.00019452,2]
[347418832,1735780247070,-470.896191,0.00019452,2]
[347418834,1735780247080,-470.896191,0.00019452,2]
[347418836,1735780247089,-470.896191,0.00019452,2]
[347418837,1735780247099,-470.896191,0.00019452,2]
[347418840,1735780247108,-500.0,0.00019452,3]
[347418841,1735780247117,-500.0,0.00019452,3]
[347418843,1735780247126,-500.0,0.00019452,3]
[347418845,1735780247135,-500.0,0.00019452,3]
[347418848,1735780247145,-775.987108,0.00019452,2]
[347418850,1735780247154,-775.987108,0.00019452,2]
[347418852,1735780247164,-775.987108,0.00019452,2]
[347418854,1735780247174,-500.0,0.00019452,3]
[347418856,1735780247183,-775.987108,0.00019452,2]
[347418858,1735780247192,-775.987108,0.00019452,2]
[347418860,1735780247203,-775.987108,0.00019452,2]
[347418862,1735780247213,-500.0,0.00019452,3]
[347418864,1735780247222,-834.95,0.00019452,3]
[347418866,1735780247231,-601.73,0.00019452,3]
[347418868,1735780247241,-245.964925,0.00019452,2]
[347418884,1735780247384,-245.964925,0.00019452,2]
[347418886,1735780247394,-245.964925,0.00019452,2]
[347418888,1735780247404,-520.33,0.00019452,3]
[347418890,1735780247413,-245.964925,0.00019452,2]
[347418892,1735780247423,-246.414895,0.00019452,2]
[347418894,1735780247432,-245.964925,0.00019452,2]
[347418896,1735780247442,-246.414895,0.00019452,2]
[347418898,1735780247451,-245.964925,0.00019452,2]
[347418900,1735780247460,-246.414895,0.00019452,2]
[347418902,1735780247470,-246.414895,0.00019452,2]
[347418904,1735780247479,-246.414895,0.00019452,2]
[347418906,1735780247489,-246.414895,0.00019452,2]
[347418908,1735780247498,-535.69,0.00019452,3]
[347418910,1735780247508,-500.0,0.00019452,3]
[347418912,1735780247518,-539.85,0.00019452,3]
[347418914,1735780247527,-500.0,0.00019452,3]
[347418916,1735780247536,-767.85,0.00019452,3]
[347418918,1735780247546,-707.14,0.00019452,3]
[347418920,1735780247555,-500.0,0.00019452,3]
[347418922,1735780247564,-234.53218748,0.00019452,2]
[347418924,1735780247576,-424.940255,0.00019452,2]
[347418926,1735780247586,-424.940255,0.00019452,2]
[347418929,1735780247595,-424.940255,0.00019452,2]
[347418931,1735780247604,-500.0,0.00019452,3]
[347418933,1735780247614,-1605.29,0.00019452,3]
[347418935,1735780247623,-424.940255,0.00019452,2]
[347418937,1735780247633,-424.940255,0.00019452,2]
[347418939,1735780247642,-424.940255,0.00019452,2]
[347418941,1735780247652,-500.0,0.00019452,3]
[347418943,1735780247661,-643.16,0.00019452,3]
[347418945,1735780247670,-500.0,0.00019452,3]
[347418947,1735780247679,-500.0,0.00019452,3]
[347418949,1735780247689,-500.0,0.00019452,3]
[347418951,1735780247698,-300.42338666,0.00019452,3]
[347418953,1735780247707,-962.53,0.00019452,3]
[347418955,1735780247717,-4635.84,0.00019452,3]
[347418957,1735780247726,-500.0,0.00019452,3]
[347418959,1735780247735,-559.63,0.00019452,3]
[347418961,1735780247745,-500.0,0.00019452,3]
[347418963,1735780247754,-705.37,0.00019452,3]
[347418965,1735780247765,-500.0,0.00019452,3]
[347418967,1735780247774,-1168.11,0.00019452,3]
[347418969,1735780247783,-3140.79,0.00019452,3]
[347418971,1735780247792,-756.81,0.00019452,3]
[347418973,1735780247802,-917.17,0.00019452,3]
[347418975,1735780247811,-3789.54,0.00019452,3]
[347418977,1735780247821,-729.68,0.00019452,3]
[347418979,1735780247830,-151.0,0.00019452,2]
[347418981,1735780247840,-21689.88,0.00019452,3]
[347418984,1735780247849,-151.0,0.00019452,2]
[347418986,1735780247859,-151.0,0.00019452,2]
[347418988,1735780247868,-1879.51,0.00019452,3]
[347418990,1735780247878,-500.0,0.00019452,3]
[347418992,1735780247887,-500.0,0.00019452,3]
[347418994,1735780247896,-528.01,0.00019452,3]
[347418996,1735780247906,-500.0,0.00019452,3]
[347418998,1735780247916,-850.65,0.00019452,3]
[347419000,1735780247925,-500.0,0.00019452,3]
[347419002,1735780247935,-500.0,0.00019452,3]
[347419004,1735780247944,-336.61193994,0.00019452,3]
[347419006,1735780247954,-500.0,0.00019452,3]
[347419008,1735780247964,-1322.01,0.00019452,2]
[347419010,1735780247976,-763.58,0.00019452,3]
[347419012,1735780247986,-1927.52,0.00019452,3]
[347419014,1735780247995,-725.007242,0.00019452,2]
[347419016,1735780248005,-1134.33,0.00019452,3]
[347419018,1735780248016,-725.007242,0.00019452,2]
[347419020,1735780248026,-500.0,0.00019452,3]
[347419022,1735780248036,-725.007242,0.00019452,2]
[347419024,1735780248045,-500.0,0.00019452,3]
[347419026,1735780248055,-725.007242,0.00019452,2]
[347419028,1735780248065,-725.007242,0.00019452,2]
[347419030,1735780248075,-2124.41,0.00019452,3]
[347419031,1735780248084,-725.007242,0.00019452,2]
[347419032,1735780248094,-500.0,0.00019452,3]
[347419033,1735780248103,-1073.51,0.00019452,3]
[347419034,1735780248113,-1135.05,0.00019452,3]
[347419035,1735780248123,-500.0,0.00019452,3]
[347419036,1735780248133,-1144.62,0.00019452,3]
[347419037,1735780248143,-513.07,0.00019452,3]
[347419038,1735780248153,-678.15,0.00019452,3]
[347419039,1735780248162,-1023.82,0.00019452,3]
[347419040,1735780248172,-1443.83,0.00019452,3]
[347419041,1735780248182,-500.0,0.00019452,3]
[347419042,1735780248191,-569.79,0.00019452,3]
[347419043,1735780248201,-500.0,0.00019452,3]
[347419044,1735780248210,-500.0,0.00019452,3]
[347419045,1735780248220,-426.581053,0.00019452,2]
[347419046,1735780248230,-426.581053,0.00019452,2]
[347419047,1735780248239,-500.0,0.00019452,3]
[347419048,1735780248249,-426.581053,0.00019452,2]
[347419049,1735780248259,-500.0,0.00019452,3]
[347419050,1735780248270,-526.71,0.00019452,3]
[347419051,1735780248279,-426.581053,0.00019452,2]
[347419052,1735780248289,-426.581053,0.00019452,2]
[347419053,1735780248299,-638.384621,0.00019452,2]
[347419054,1735780248308,-426.581053,0.00019452,2]
[347419055,1735780248319,-638.384621,0.00019452,2]
[347419056,1735780248328,-638.384621,0.00019452,2]
[347419057,1735780248338,-638.384621,0.00019452,2]
[347419058,1735780248348,-638.384621,0.00019452,2]
[347419060,1735780248357,-638.384621,0.00019452,2]
[347419062,1735780248367,-591.11,0.00019452,3]
[347419064,1735780248376,-166.94727028,0.00019473,2]
[347419066,1735780248386,-500.0,0.00019473,2]
[347419068,1735780248396,-500.0,0.00019473,2]
[347419070,1735780248406,-1916.85548353,0.00019489,2]
[347419072,1735780248415,-725.007242,0.00019489,2]
[347419074,1735780248425,-725.007242,0.00019489,2]
[347419076,1735780248435,-305.07379908,0.00019507,2]
[347419078,1735780248444,-151.0,0.00019521,2]
[347419080,1735780248454,-315.422068,0.00019521,2]
[347419082,1735780248464,-315.422068,0.00019521,2]
[347419084,1735780248474,-1916.85548353,0.00019626,2]
[347419087,1735780248483,-3000.0,0.00019626,2]
[347419089,1735780248493,-724.04508033,0.00019689,2]
[347419091,1735780248502,-246.414895,0.0001969,2]
[347419093,1735780248512,-246.414895,0.0001969,2]
[347419095,1735780248522,-500.0,0.00019721,2]
[347419097,1735780248531,-641.58480877,0.00019721,4]
[347419099,1735780248543,-151.0,0.00019725,2]
[347419101,1735780248552,-151.0,0.00019725,2]
[347419103,1735780248562,-1363.681793,0.00019725,2]
[347419105,1735780248572,-1363.681793,0.00019725,2]
[347419107,1735780248582,-229.739009,0.00019725,2]
[347419109,1735780248592,-547.276778,0.00019725,2]
[347419111,1735780248602,-547.276778,0.00019725,2]
[347419113,1735780248611,-151.0,0.00019725,2]
[347419115,1735780248620,-151.0,0.00019726,2]
[347419117,1735780248630,-151.0,0.00019726,2]
[347419119,1735780248639,-151.0,0.00019726,2]
[347419121,1735780248649,-151.0,0.00019726,2]
[347419123,1735780248659,-151.0,0.00019726,2]
[347419125,1735780248668,-151.0,0.00019726,2]
[347419127,1735780248677,-151.0,0.00019726,2]
[347419129,1735780248686,-151.0,0.00019726,2]
[347419131,1735780248696,-151.0,0.00019726,2]